fUST/lending_fUST_20240116
["ID","MTS","AMOUNT","RATE_DAILY","PERIOD"]
[311729542,1705367432211,-2135.09360923,0.00023145,2]
[311729544,1705367432221,-732.66,0.00023153,2]
[311729546,1705367432230,-241.69991872,0.00023153,2]
[311729548,1705367432239,-6336.03,0.00023153,2]
[311729550,1705367432248,-500.0,0.00023153,2]
[311729552,1705367432257,-2305.08,0.00023153,2]
[311729554,1705367432266,-10513.19,0.00023153,2]
[311729555,1705367432275,-163.3226322,0.00023153,2]
[311729557,1705367432284,-2029.53,0.00023153,2]
[311729558,1705367432294,-500.0,0.00023154,2]
[311729559,1705367432303,-1593.51,0.00023154,2]
[311729560,1705367432312,-500.0,0.00023154,2]
[311729561,1705367432321,-500.0,0.00023154,2]
[311729562,1705367432331,-500.0,0.00023154,2]
[311729563,1705367432340,-500.0,0.00023154,2]
[311729564,1705367432349,-520.18,0.00023154,2]
[311729565,1705367432358,-569.83,0.00023154,2]
[311729566,1705367432367,-500.0,0.00023154,2]
[311729567,1705367432377,-568.62,0.00023154,2]
[311729568,1705367432386,-738.87,0.00023154,2]
[311729569,1705367432396,-500.0,0.00023154,2]
[311729570,1705367432405,-2795.56,0.00023154,2]
[311729571,1705367432414,-320.89029073,0.00023154,2]
[311729572,1705367432423,-679.85,0.00023154,2]
[311729573,1705367432433,-4926.68,0.00023154,2]
[311729574,1705367432442,-1049.71,0.00023154,2]
[311729575,1705367432451,-500.0,0.00023154,2]
[311729576,1705367432460,-3748.29,0.00023154,2]
[311729577,1705367432469,-1695.51,0.00023154,2]
[311729578,1705367432478,-500.0,0.00023154,2]
[311729579,1705367432487,-500.0,0.00023154,2]
[311729580,1705367432497,-389.69726506,0.00023154,2]
[311729581,1705367432506,-2032.0,0.00023154,2]
[311729582,1705367432515,-500.0,0.00023154,2]
[311729583,1705367432524,-500.0,0.00023154,2]
[311729585,1705367432533,-1064.43,0.00023154,2]
[311729586,1705367432542,-237.81348901,0.00023154,2]
[311729587,1705367432554,-262.18651099,0.00023154,2]
[311729588,1705367432563,-875.16382389,0.00023154,2]
[311729922,1705367440969,-116.76617611,0.00023154,2]
[311729925,1705367440980,-500.0,0.00023154,2]
[311729927,1705367440989,-1823.12,0.00023154,2]
[311729928,1705367440999,-500.0,0.00023154,2]
[311729931,1705367441009,-500.0,0.00023155,2]
[311729933,1705367441019,-500.0,0.00023155,2]
[311729935,1705367441029,-549.64768242,0.00023155,2]
[311729936,1705367441039,-500.0,0.00023155,2]
[311729939,1705367441049,-369.19746983,0.00023155,2]
[311729941,1705367441059,-234.40423221,0.00023155,2]
[311729945,1705367441093,-265.59576779,0.00023155,2]
[311729947,1705367441103,-834.81,0.00023155,2]
[311729949,1705367441112,-500.0,0.00023155,2]
[311729951,1705367441126,-325.90275771,0.00023155,2]
[311729953,1705367441137,-299.71238686,0.00023155,2]
[311730135,1705367443043,-570.54,0.00023153,2]
[311730138,1705367443053,-200.28761314,0.00023155,2]
[311730141,1705367443063,-500.0,0.00023155,2]
[311730144,1705367443073,-589.95,0.00023155,2]
[311730147,1705367443082,-327.81371074,0.00023155,2]
[311730150,1705367443094,-172.18628926,0.00023155,2]
[311730151,1705367443104,-500.0,0.00023155,2]
[311730153,1705367443113,-500.0,0.00023155,2]
[311730156,1705367443123,-6.35458999,0.00023155,2]
[311733637,1705367717576,3105.12212685,0.00021054,2]
[311733641,1705367779103,166.666666,0.00021918,2]
[311733663,1705368020008,170.099937,0.00021251,2]
[311733665,1705368056510,174.05471691,0.0002203,2]
[311733666,1705368062389,155.53950982,0.00022047,2]
[311733669,1705368191761,42461.83092881,0.00022047,2]
[311733676,1705368284363,166.666666,0.00021918,2]
[311733678,1705368287500,166.666666,0.00021918,2]
[311733681,1705368321676,2070.0814179,0.00021054,2]
[311733683,1705368349909,158.7405125,0.00021119,2]
[311733689,1705368411196,24900.0,0.00021122,2]
[311733692,1705368424366,247.8336431,0.00021122,2]
[311733694,1705368434057,1492.6193174,0.00021115,2]
[311733697,1705368467949,154.9690062,0.00022101,4]
[311733698,1705368487314,402.90810268,0.00022101,2]
[311733699,1705368491947,154.9690062,0.00019905,3]
[311733700,1705368498357,154.9690062,0.00022101,2]
[311733702,1705368502619,169.8221,0.00020848,2]
[311733703,1705368504562,267.17078019,0.00022101,2]
[311733704,1705368507952,154.9690062,0.00019905,3]
[311733705,1705368524155,154.9690062,0.00019905,3]
[311733706,1705368543954,154.9690062,0.00019905,3]
[311733708,1705368553111,2257.0325121,0.0002112,2]
[311733709,1705368566055,154.9690062,0.00019897,3]
[311733710,1705368566283,976.79905731,0.00019897,2]
[311733711,1705368583980,154.9690062,0.00019897,3]
[311733712,1705368609975,154.9690062,0.00019895,3]
[311733715,1705368617781,1223.16249973,0.00019897,2]
[311733717,1705368627986,154.9690062,0.00019895,3]
[311733757,1705368632215,-154.9690062,0.00022105,2]
[311733759,1705368632225,-546.3813805,0.00022106,2]
[311733761,1705368632234,-155.53332303,0.00022106,2]
[311733763,1705368632244,-154.9690062,0.00022106,2]
[311733765,1705368632253,-154.9690062,0.00022107,2]
[311733767,1705368632262,-279.82326767,0.00022107,2]
[311733838,1705368638373,-942.60744208,0.00022107,2]
[311733840,1705368638383,-50595.90969939,0.00022107,2]
[311733842,1705368638394,-13703.21181576,0.00022108,2]
[311733844,1705368638404,-466.88440498,0.00022117,2]
[311733846,1705368638413,-155.45171108,0.00022117,2]
[311733848,1705368638422,-272.5066937,0.00022117,2]
[311733850,1705368638431,-170.58368012,0.00022118,2]
[311733852,1705368638440,-628.22510289,0.00022118,2]
[311733854,1705368638449,-155.0,0.00022118,2]
[311733856,1705368638458,-246.19657285,0.00022118,2]
[311733858,1705368638468,-166.4504165,0.00022118,2]
[311733860,1705368638477,-155.37431966,0.00022119,2]
[311733861,1705368638486,-482.66877209,0.00022119,2]
[311733863,1705368638495,-36916.98061949,0.00022119,2]
[311733865,1705368638504,-155.11769677,0.0002212,2]
[311733867,1705368638513,-155.77057492,0.00022127,2]
[311733869,1705368638522,-155.1891832,0.00022128,2]
[311733871,1705368638531,-452.10708087,0.00022128,2]
[311733873,1705368638540,-438.62578398,0.00022128,2]
[311733875,1705368638549,-2499.74012185,0.00022129,2]
[311733877,1705368638558,-9430.35,0.00022129,2]
[311733879,1705368638568,-500.0,0.00022129,2]
[311733881,1705368638576,-720.94,0.0002213,2]
[311733883,1705368638585,-899.43,0.0002213,2]
[311733885,1705368638594,-1256.13,0.0002213,2]
[311733887,1705368638603,-14889.7,0.0002213,2]
[311733889,1705368638612,-2244.03,0.0002213,2]
[311733891,1705368638621,-500.0,0.0002213,2]
[311733893,1705368638630,-3351.38,0.0002213,2]
[311733895,1705368638639,-500.0,0.0002213,2]
[311733897,1705368638649,-500.0,0.0002213,2]
[311733899,1705368638658,-455.08047894,0.00022304,2]
[311733900,1705368638667,-9430.35,0.00022403,2]
[311733902,1705368638678,-498.0,0.00022403,2]
[311733904,1705368638688,-720.94,0.00022404,2]
[311733906,1705368638697,-899.43,0.00022404,2]
[311733908,1705368638706,-1256.13,0.00022404,2]
[311733910,1705368638715,-14889.7,0.00022404,2]
[311733912,1705368638725,-2244.03,0.00022404,2]
[311733914,1705368638734,-500.0,0.00022404,2]
[311733916,1705368638743,-3351.38,0.00022404,2]
[311733918,1705368638753,-500.0,0.00022404,2]
[311733920,1705368638762,-500.0,0.00022404,2]
[311733922,1705368638772,-9430.35,0.00022677,2]
[311733924,1705368638786,-720.94,0.00022678,2]
[311733926,1705368638795,-899.43,0.00022678,2]
[311733928,1705368638804,-1256.13,0.00022678,2]
[311733930,1705368638813,-14889.7,0.00022678,2]
[311733932,1705368638822,-500.0,0.00022678,2]
[311733934,1705368638831,-3351.38,0.00022678,2]
[311733936,1705368638840,-500.0,0.00022678,2]
[311733938,1705368638849,-500.0,0.00022678,2]
[311733940,1705368638858,-455.08047891,0.00022765,2]
[311733942,1705368638867,-9430.35,0.00022951,2]
[311733944,1705368638877,-720.94,0.00022952,2]
[311733945,1705368638886,-899.43,0.00022952,2]
[311733947,1705368638896,-1256.13,0.00022952,2]
[311733949,1705368638905,-14889.7,0.00022952,2]
[311733951,1705368638914,-500.0,0.00022952,2]
[311733953,1705368638924,-3351.38,0.00022952,2]
[311733955,1705368638934,-500.0,0.00022952,2]
[311733958,1705368638946,-155.37987387,0.0002315,2]
[311733960,1705368638956,-874.81841148,0.00023151,2]
[311733962,1705368638965,-160.85351962,0.00023151,2]
[311733964,1705368638975,-326.67061456,0.00023152,2]
[311733966,1705368638984,-155.4776592,0.00023152,2]
[311733968,1705368638994,-500.0,0.00023152,2]
[311733969,1705368639004,-2155.34,0.00023152,2]
[311733971,1705368639014,-2383.83,0.00023152,2]
[311733973,1705368639023,-500.0,0.00023152,2]
[311733975,1705368639032,-500.0,0.00023152,2]
[311733977,1705368639041,-1167.95,0.00023152,2]
[311733979,1705368639050,-548.66,0.00023152,2]
[311733981,1705368639059,-882.0,0.00023152,2]
[311733983,1705368639068,-500.0,0.00023153,2]
[311733985,1705368639077,-787.81,0.00023153,2]
[311733987,1705368639087,-607.49,0.00023153,2]
[311733989,1705368639096,-3284.36,0.00023153,2]
[311733991,1705368639105,-500.0,0.00023153,2]
[311733993,1705368639114,-833.33,0.00023153,2]
[311733995,1705368639123,-500.0,0.00023153,2]
[311733997,1705368639132,-1053.04,0.00023153,2]
[311733999,1705368639142,-500.0,0.00023153,2]
[311734001,1705368639152,-620.41,0.00023153,2]
[311734003,1705368639161,-500.0,0.00023153,2]
[311734005,1705368639170,-500.0,0.00023153,2]
[311734007,1705368639179,-500.0,0.00023153,2]
[311734009,1705368639189,-500.0,0.00023153,2]
[311734011,1705368639198,-500.0,0.00023153,2]
[311734013,1705368639207,-502.01063694,0.00023153,5]
[311734015,1705368639216,-517.68,0.00023153,2]
[311734017,1705368639224,-1481.86,0.00023153,2]
[311734019,1705368639234,-472.35327518,0.00023153,2]
[311734021,1705368639243,-500.0,0.00023153,2]
[311734023,1705368639252,-500.0,0.00023154,2]
[311734025,1705368639261,-500.0,0.00023154,2]
[311734026,1705368639271,-500.0,0.00023154,2]
[311734028,1705368639280,-969.09,0.00023154,2]
[311734030,1705368639290,-500.0,0.00023154,2]
[311734031,1705368639298,-500.0,0.00023154,2]
[311734033,1705368639307,-500.0,0.00023154,2]
[311734035,1705368639315,-151.37605903,0.00023154,2]
[311734037,1705368639325,-500.0,0.00023154,2]
[311734039,1705368639334,-685.5,0.00023154,2]
[311734041,1705368639343,-615.40630783,0.00023154,2]
[311734043,1705368639353,-500.0,0.00023154,2]
[311734044,1705368639362,-500.0,0.00023154,2]
[311734046,1705368639372,-500.0,0.00023154,2]
[311734048,1705368639381,-500.0,0.00023154,2]
[311734050,1705368639390,-500.0,0.00023154,2]
[311734052,1705368639401,-500.0,0.00023154,2]
[311734054,1705368639410,-526.45,0.00023154,2]
[311734055,1705368639418,-500.0,0.00023154,2]
[311734057,1705368639427,-805.83,0.00023154,2]
[311734059,1705368639436,-500.0,0.00023154,2]
[311734061,1705368639446,-500.0,0.00023154,2]
[311734063,1705368639455,-2260.19,0.00023154,2]
[311734065,1705368639464,-500.0,0.00023154,2]
[311734067,1705368639474,-500.0,0.00023154,2]
[311734069,1705368639483,-500.0,0.00023154,2]
[311734071,1705368639492,-500.0,0.00023155,2]
[311734073,1705368639502,-453.68316455,0.00023155,2]
[311734075,1705368639511,-500.0,0.00023157,2]
[311734077,1705368639521,-500.0,0.00023157,2]
[311734079,1705368639531,-500.0,0.00023157,2]
[311734081,1705368639539,-500.0,0.00023157,2]
[311734082,1705368639549,-621.9,0.00023157,2]
[311734084,1705368639558,-534.96971966,0.00023157,2]
[311734086,1705368639567,-500.0,0.00023157,2]
[311734088,1705368639576,-500.0,0.00023157,2]
[311734090,1705368639585,-500.0,0.00023157,2]
[311734092,1705368639595,-500.0,0.00023157,2]
[311734094,1705368639604,-1387.53,0.00023157,2]
[311734096,1705368639613,-9430.35,0.00023225,2]
[311734099,1705368639622,-720.94,0.00023226,2]
[311734101,1705368639631,-455.08047891,0.00023226,2]
[311734103,1705368639640,-899.43,0.00023226,2]
[311734105,1705368639651,-1256.13,0.00023226,2]
[311734107,1705368639660,-14889.7,0.00023226,2]
[311734109,1705368639669,-500.0,0.00023226,2]
[311734111,1705368639678,-3351.38,0.00023226,2]
[311734113,1705368639688,-500.0,0.00023226,2]
[311734115,1705368639697,-500.0,0.00023395,2]
[311734117,1705368639706,-611.44492241,0.00023395,2]
[311734119,1705368639715,-500.0,0.00023395,2]
[311734121,1705368639724,-500.0,0.00023395,2]
[311734123,1705368639733,-597.26456547,0.00023395,2]
[311734125,1705368639742,-500.0,0.00023395,2]
[311734127,1705368639751,-500.0,0.00023395,2]
[311734128,1705368639760,-500.0,0.00023395,2]
[311734130,1705368639770,-349.69989069,0.00023395,2]
[311734132,1705368639779,-253.40451176,0.00023395,2]
[311734134,1705368639788,-500.0,0.00023395,2]
[311734136,1705368639797,-500.0,0.00023395,2]
[311734138,1705368639806,-500.0,0.00023395,2]
[311734140,1705368639816,-500.0,0.00023395,2]
[311734142,1705368639825,-500.0,0.00023395,2]
[311734144,1705368639834,-617.60692268,0.00023395,2]
[311734146,1705368639844,-500.0,0.00023395,2]
[311734147,1705368639853,-493.6084128,0.00023395,2]
[311734149,1705368639863,-500.0,0.00023395,2]
[311734151,1705368639872,-500.0,0.00023395,2]
[311734153,1705368639880,-500.0,0.00023395,2]
[311734155,1705368639889,-500.0,0.00023395,2]
[311734157,1705368639899,-500.0,0.00023395,2]
[311734159,1705368639908,-500.0,0.00023395,2]
[311734161,1705368639917,-500.0,0.00023395,2]
[311734163,1705368639925,-500.0,0.00023395,2]
[311734165,1705368639934,-500.0,0.00023395,2]
[311734166,1705368639944,-500.0,0.00023395,2]
[311734168,1705368639953,-500.0,0.00023395,2]
[311734170,1705368639962,-500.0,0.00023395,2]
[311734172,1705368639971,-500.0,0.00023395,2]
[311734174,1705368639980,-500.0,0.00023395,2]
[311734176,1705368639989,-500.0,0.00023395,2]
[311734178,1705368639998,-500.0,0.00023395,2]
[311734180,1705368640007,-500.0,0.00023395,2]
[311734190,1705368640093,-500.0,0.00023395,2]
[311734191,1705368640102,-500.0,0.00023395,2]
[311734192,1705368640112,-500.0,0.00023396,2]
[311734193,1705368640120,-506.94813681,0.00023396,2]
[311734195,1705368640129,-574.01,0.00023396,2]
[311734196,1705368640138,-500.0,0.00023396,2]
[311734197,1705368640148,-500.0,0.00023396,2]
[311734198,1705368640156,-500.0,0.00023396,2]
[311734199,1705368640166,-500.0,0.00023396,2]
[311734200,1705368640175,-675.48,0.00023396,2]
[311734202,1705368640184,-500.0,0.00023396,2]
[311734204,1705368640193,-500.0,0.00023396,2]
[311734206,1705368640202,-500.0,0.00023396,2]
[311734207,1705368640211,-500.0,0.00023396,2]
[311734208,1705368640219,-500.0,0.00023396,2]
[311734209,1705368640228,-500.0,0.00023396,2]
[311734210,1705368640237,-500.0,0.00023396,2]
[311734211,1705368640246,-500.0,0.00023396,2]
[311734212,1705368640256,-500.0,0.00023396,2]
[311734213,1705368640264,-503.84730976,0.00023396,2]
[311734214,1705368640273,-377.74911454,0.00023396,2]
[311734215,1705368640281,-500.0,0.00023396,2]
[311734216,1705368640290,-500.0,0.00023396,2]
[311734217,1705368640299,-500.0,0.00023396,2]
[311734218,1705368640307,-304.18856193,0.00023396,2]
[311734219,1705368640317,-500.0,0.00023396,2]
[311734220,1705368640325,-500.0,0.00023396,2]
[311734221,1705368640334,-500.0,0.00023396,2]
[311734222,1705368640343,-500.0,0.00023396,2]
[311734223,1705368640352,-500.0,0.00023396,2]
[311734224,1705368640361,-911.07,0.00023396,2]
[311734225,1705368640371,-5460.4,0.00023396,2]
[311734226,1705368640380,-496.52210292,0.00023396,2]
[311734227,1705368640389,-520.26,0.00023396,2]
[311734228,1705368640400,-500.0,0.00023396,2]
[311734229,1705368640410,-4154.35,0.00023396,2]
[311734230,1705368640419,-500.0,0.00023396,2]
[311734231,1705368640429,-500.0,0.00023396,2]
[311734232,1705368640438,-232.81777432,0.00023396,2]
[311734233,1705368640447,-500.51515572,0.00023396,2]
[311734235,1705368640456,-3588.46145644,0.00023416,2]
[311734237,1705368640465,-3268.7207065,0.00023417,2]
[311734239,1705368640474,-155.1239659,0.00023426,2]
[311734241,1705368640483,-500.0,0.00023426,2]
[311734243,1705368640492,-2155.34,0.00023426,2]
[311734245,1705368640501,-2383.83,0.00023426,2]
[311734247,1705368640509,-510.80992751,0.00023426,2]
[311734249,1705368640519,-500.0,0.00023426,2]
[311734250,1705368640528,-1167.95,0.00023426,2]
[311734252,1705368640537,-548.66,0.00023426,2]
[311734254,1705368640546,-882.0,0.00023426,2]
[311734256,1705368640555,-500.0,0.00023427,2]
[311734258,1705368640564,-787.81,0.00023427,2]
[311734260,1705368640573,-607.49,0.00023427,2]
[311734262,1705368640582,-3284.36,0.00023427,2]
[311734264,1705368640592,-500.0,0.00023427,2]
[311734266,1705368640601,-833.33,0.00023427,2]
[311734268,1705368640610,-500.0,0.00023427,2]
[311734269,1705368640619,-1053.04,0.00023427,2]
[311734271,1705368640628,-500.0,0.00023427,2]
[311734273,1705368640637,-620.41,0.00023427,2]
[311734275,1705368640648,-500.0,0.00023427,2]
[311734277,1705368640657,-500.0,0.00023427,2]
[311734279,1705368640666,-500.0,0.00023427,2]
[311734281,1705368640675,-500.0,0.00023427,2]
[311734283,1705368640685,-517.68,0.00023427,2]
[311734284,1705368640698,-1481.86,0.00023427,2]
[311734285,1705368640707,-500.0,0.00023427,2]
[311734287,1705368640716,-500.0,0.00023428,2]
[311734289,1705368640726,-154.81731102,0.00023428,2]
[311734290,1705368640737,-969.09,0.00023428,2]
[311734291,1705368640746,-500.0,0.00023428,2]
[311734292,1705368640756,-500.0,0.00023428,2]
[311734293,1705368640766,-500.0,0.00023428,2]
[311734294,1705368640776,-685.5,0.00023428,2]
[311734295,1705368640785,-500.0,0.00023428,2]
[311734296,1705368640795,-500.0,0.00023428,2]
[311734298,1705368640804,-500.0,0.00023428,2]
[311734300,1705368640813,-500.0,0.00023428,2]
[311734302,1705368640823,-500.0,0.00023428,2]
[311734303,1705368640832,-526.45,0.00023428,2]
[311734305,1705368640841,-500.0,0.00023428,2]
[311734307,1705368640850,-805.83,0.00023428,2]
[311734309,1705368640860,-500.0,0.00023428,2]
[311734311,1705368640869,-500.0,0.00023428,2]
[311734313,1705368640878,-2260.19,0.00023428,2]
[311734315,1705368640888,-500.0,0.00023428,2]
[311734317,1705368640900,-500.0,0.00023428,2]
[311734318,1705368640908,-500.0,0.00023428,2]
[311734319,1705368640917,-500.0,0.00023429,2]
[311734320,1705368640926,-500.0,0.00023431,2]
[311734321,1705368640935,-500.0,0.00023431,2]
[311734323,1705368640944,-500.0,0.00023431,2]
[311734325,1705368640953,-500.0,0.00023431,2]
[311734327,1705368640962,-621.9,0.00023431,2]
[311734329,1705368640971,-500.0,0.00023431,2]
[311734331,1705368640980,-500.0,0.00023431,2]
[311734333,1705368640989,-500.0,0.00023431,2]
[311734334,1705368641001,-500.0,0.00023431,2]
[311734335,1705368641011,-1387.53,0.00023431,2]
[311734336,1705368641021,-9430.35,0.00023499,2]
[311734337,1705368641030,-720.94,0.000235,2]
[311734338,1705368641040,-899.43,0.000235,2]
[311734339,1705368641049,-1256.13,0.000235,2]
[311734340,1705368641059,-14889.7,0.000235,2]
[311734341,1705368641069,-500.0,0.000235,2]
[311734342,1705368641078,-3351.38,0.000235,2]
[311734343,1705368641087,-500.0,0.000235,2]
[311734344,1705368641097,-500.0,0.0002367,2]
[311734345,1705368641106,-574.01,0.0002367,2]
[311734346,1705368641115,-505.95577879,0.0002367,2]
[311734347,1705368641124,-500.0,0.0002367,2]
[311734348,1705368641134,-500.0,0.0002367,2]
[311734349,1705368641145,-675.48,0.0002367,2]
[311734350,1705368641155,-500.0,0.0002367,2]
[311734351,1705368641164,-361.24715792,0.0002367,2]
[311734352,1705368641174,-500.0,0.0002367,2]
[311734353,1705368641184,-500.0,0.0002367,2]
[311734354,1705368641193,-500.0,0.0002367,2]
[311734355,1705368641203,-500.0,0.0002367,2]
[311734356,1705368641212,-500.0,0.0002367,2]
[311734357,1705368641223,-500.0,0.0002367,2]
[311734358,1705368641233,-911.07,0.0002367,2]
[311734359,1705368641244,-5460.4,0.0002367,2]
[311734360,1705368641254,-520.26,0.0002367,2]
[311734361,1705368641263,-500.0,0.0002367,2]
[311734362,1705368641273,-4154.35,0.0002367,2]
[311734363,1705368641284,-455.08047891,0.00023687,2]
[311734364,1705368641293,-500.0,0.000237,2]
[311734365,1705368641303,-2155.34,0.000237,2]
[311734366,1705368641313,-2383.83,0.000237,2]
[311734367,1705368641323,-500.0,0.000237,2]
[311734368,1705368641333,-1167.95,0.000237,2]
[311734369,1705368641343,-548.66,0.000237,2]
[311734370,1705368641352,-882.0,0.000237,2]
[311734371,1705368641362,-500.0,0.00023701,2]
[311734372,1705368641371,-787.81,0.00023701,2]
[311734373,1705368641380,-607.49,0.00023701,2]
[311734374,1705368641389,-3284.36,0.00023701,2]
[311734375,1705368641400,-500.0,0.00023701,2]
[311734376,1705368641410,-833.33,0.00023701,2]
[311734377,1705368641419,-500.0,0.00023701,2]
[311734378,1705368641428,-1053.04,0.00023701,2]
[311734379,1705368641437,-500.0,0.00023701,2]
[311734380,1705368641446,-620.41,0.00023701,2]
[311734381,1705368641455,-500.0,0.00023701,2]
[311734382,1705368641464,-168.49388473,0.00023701,2]
[311734383,1705368641473,-500.0,0.00023701,2]
[311734384,1705368641483,-517.68,0.00023701,2]
[311734385,1705368641494,-1481.86,0.00023701,2]
[311734386,1705368641504,-500.0,0.00023701,2]
[311734387,1705368641513,-500.0,0.00023702,2]
[311734388,1705368641521,-969.09,0.00023702,2]
[311734389,1705368641530,-500.0,0.00023702,2]
[311734390,1705368641539,-500.0,0.00023702,2]
[311734391,1705368641548,-500.0,0.00023702,2]
[311734392,1705368641556,-685.5,0.00023702,2]
[311734393,1705368641565,-500.0,0.00023702,2]
[311734394,1705368641575,-500.0,0.00023702,2]
[311734395,1705368641584,-500.0,0.00023702,2]
[311734396,1705368641593,-500.0,0.00023702,2]
[311734397,1705368641602,-500.0,0.00023702,2]
[311734398,1705368641611,-526.45,0.00023702,2]
[311734399,1705368641621,-500.0,0.00023702,2]
[311734400,1705368641630,-296.49142264,0.00023702,3]
[311734401,1705368641639,-805.83,0.00023702,2]
[311734402,1705368641650,-500.0,0.00023702,2]
[311734403,1705368641659,-500.0,0.00023702,2]
[311734404,1705368641668,-2260.19,0.00023702,2]
[311734405,1705368641677,-500.0,0.00023702,2]
[311734406,1705368641686,-500.0,0.00023702,2]
[311734407,1705368641695,-500.0,0.00023702,2]
[311734408,1705368641704,-500.0,0.00023703,2]
[311734409,1705368641714,-500.0,0.00023705,2]
[311734410,1705368641723,-500.0,0.00023705,2]
[311734411,1705368641733,-500.0,0.00023705,2]
[311734412,1705368641742,-621.9,0.00023705,2]
[311734413,1705368641751,-500.0,0.00023705,2]
[311734414,1705368641759,-500.0,0.00023705,2]
[311734415,1705368641769,-500.0,0.00023705,2]
[311734416,1705368641778,-500.0,0.00023705,2]
[311734417,1705368641787,-1387.53,0.00023705,2]
[311734418,1705368641797,-9430.35,0.00023773,2]
[311734419,1705368641806,-500.0,0.00023773,4]
[311734420,1705368641815,-500.0,0.00023773,4]
[311734421,1705368641824,-284.02229075,0.00023773,4]
[311734422,1705368641833,-500.0,0.00023773,4]
[311734423,1705368641842,-500.0,0.00023773,4]
[311734424,1705368641851,-500.0,0.00023773,4]
[311734426,1705368641931,-500.0,0.00023773,4]
[311734428,1705368641942,-251.96322894,0.00023773,4]
[311734430,1705368641951,-500.0,0.00023773,4]
[311734431,1705368641960,-500.0,0.00023773,4]
[311734433,1705368641970,-500.0,0.00023773,4]
[311734435,1705368641979,-425.83443898,0.00023773,4]
[311734437,1705368641989,-500.0,0.00023773,4]
[311734439,1705368641999,-500.0,0.00023773,4]
[311734441,1705368642008,-500.0,0.00023773,4]
[311734443,1705368642018,-500.0,0.00023773,4]
[311734446,1705368642028,-500.0,0.00023773,4]
[311734447,1705368642038,-568.06995782,0.00023773,4]
[311734449,1705368642047,-500.0,0.00023773,4]
[311734451,1705368642056,-500.0,0.00023773,4]
[311734453,1705368642065,-323.7659453,0.00023773,4]
[311734455,1705368642075,-500.0,0.00023773,4]
[311734457,1705368642084,-500.0,0.00023773,4]
[311734459,1705368642095,-298.72494123,0.00023773,4]
[311734461,1705368642104,-500.0,0.00023773,4]
[311734463,1705368642113,-500.0,0.00023773,4]
[311734465,1705368642122,-500.0,0.00023773,4]
[311734467,1705368642131,-500.0,0.00023773,4]
[311734469,1705368642141,-500.0,0.00023773,4]
[311734470,1705368642153,-500.0,0.00023773,4]
[311734471,1705368642162,-500.0,0.00023773,4]
[311734473,1705368642171,-2016.977426,0.00023774,2]
[311734475,1705368642181,-2016.977426,0.00023774,2]
[311734476,1705368642192,-151.0,0.00023774,2]
[311734477,1705368642202,-154.019126,0.00023774,2]
[311734478,1705368642211,-196.963003,0.00023774,2]
[311734479,1705368642221,-720.94,0.00023774,2]
[311734480,1705368642231,-899.43,0.00023774,2]
[311734481,1705368642240,-1256.13,0.00023774,2]
[311734482,1705368642250,-14889.7,0.00023774,2]
[311734483,1705368642259,-500.0,0.00023774,2]
[311734484,1705368642268,-3351.38,0.00023774,2]